Cogmind - Beta 11.1 @@@ ROGUE MODE // 2022.09.24 @ 23:27:03 Player: Okkudo Result: Destroyed by H-66 Slayer with Gauss Rifle Performance ------------- Evolutions (5) 2500 Regions Visited (9) 1800 Robots Destroyed (57) 285 Value Destroyed (2351) 2351 Prototype IDs (4) 80 Alien Tech Used (0) 0 Bonus (370) 370 TOTAL SCORE: 7386 Bonus ------- Follower Combat Kills 70 Aligned with FarCom 300 Cogmind --------- Core Integrity 0/1000 Matter 250/300 Energy 100/100 System Corruption 1% Temperature Cool (0) Movement Core (50) Location -5/Extension Parts ------- > --- POWER (2) -------- (None) > --- PROPULSION (6) --- (None) > --- UTILITY (6) ------ Graphene Brace > --- WEAPON (3) ------- (None) > --- INVENTORY (5) ---- Medium Matter Pod (100) Advanced Sensor Array Hacking Suite Improved Datajack Peak State ------------ > --- POWER ------------ Enhanced Fission Core Micro Fission Core > --- PROPULSION ------- Improved VSS Leg Improved VSS Leg Improved VSS Leg Improved VSS Leg Enhanced Flexi-carbon Leg Enhanced Flexi-carbon Leg > --- UTILITY ---------- Medium Storage Unit Improved Medium Armor Plating Improved Medium Armor Plating Graphene Brace Improved Recalibrator > --- WEAPON ----------- AWS/Autocannon > --- INVENTORY -------- Improved VSS Leg Improved VSS Leg Medium Matter Pod Advanced Sensor Array Kinecellerator Hacking Suite Gauss Rifle Rocket Launcher Improved Datajack Axe [Rating: 102] Favorites ----------- Power Light Ion Engine Engine Light Ion Engine Power Core Micro Nuclear Core Propulsion Aluminum Leg Leg Aluminum Leg Utility Medium Storage Unit Device Terrain Scanner Storage Medium Storage Unit Processor Improved Terrain Scan Processor Protection Improved Medium Armor Plating Weapon AWS/Autocannon Energy Gun Medium Laser Ballistic Gun Light Assault Rifle Ballistic Cannon AWS/Autocannon Launcher Grenade Launcher Slashing Weapon Axe Build | -11 -10 -10 -10 -9 -8 -7 -6 -5 -5 ------- Run | Scr Mat Min Exi Min Mat Fac Fac Fac Ext Slots Evolved 10 | . . . . . 4 2 2 2 . Power 1 | . . . . . 1 . . . . Propulsion 4 | . . . . . 1 1 1 1 . Utility 4 | . . . . . 1 1 1 1 . Weapon 1 | . . . . . 1 . . . . Parts Attached 56 | 6 3 . 1 3 8 7 15 7 6 Power 8 | 1 . . . . 1 2 2 2 . Engine 2 | 1 . . . . . 1 . . . Core 6 | . . . . . 1 1 2 2 . Reactor . | . . . . . . . . . . Propulsion 23 | 2 . . . 1 3 3 8 4 2 Treads . | . . . . . . . . . . Leg 23 | 2 . . . 1 3 3 8 4 2 Wheel . | . . . . . . . . . . Hover . | . . . . . . . . . . Flight . | . . . . . . . . . . Utility 16 | 1 2 . 1 . 3 2 5 1 1 Device 9 | . 1 . 1 . 1 2 2 1 1 Storage 2 | 1 1 . . . . . . . . Processor 2 | . . . . . 2 . . . . Hackware . | . . . . . . . . . . Protection 3 | . . . . . . . 3 . . Artifact . | . . . . . . . . . . Weapon 9 | 2 1 . . 2 1 . . . 3 Energy Gun 2 | 1 . . . 1 . . . . . Energy Cannon . | . . . . . . . . . . Ballistic Gun 3 | 1 . . . 1 . . . . 1 Ballistic Cannon 1 | . . . . . 1 . . . . Launcher 2 | . 1 . . . . . . . 1 Special Weapon . | . . . . . . . . . . Impact Weapon . | . . . . . . . . . . Slashing Weapon 1 | . . . . . . . . . 1 Piercing Weapon . | . . . . . . . . . . Special Melee Weapon . | . . . . . . . . . . Unidentified Prototypes 4 | . . . 1 . 1 . . 2 . Parts Lost 19 | . . . . 1 1 3 . . 14 Power 4 | . . . . . 1 1 . . 2 Propulsion 8 | . . . . 1 . 1 . . 6 Utility 4 | . . . . . . 1 . . 3 Weapon 3 | . . . . . . . . . 3 Highest Loss Streak 12 | . . . . 1 1 2 . . 12 To Critical Strikes . | . . . . . . . . . . Average Slot Usage (%) 79 | . 94 100 95 84 76 70 82 80 69 Engine 6 | . 14 14 14 14 7 2 . . . Core 5 | . . . . . 6 4 9 10 8 Leg 28 | . 28 28 28 27 27 26 32 33 29 Device 9 | . 9 14 10 . 8 13 13 11 10 Storage 8 | . 14 14 14 14 9 7 6 5 4 Processor 3 | . . . . . 8 7 2 . . Protection 2 | . . . . . . . 10 11 5 Ballistic Gun 3 | . 14 14 14 14 . . . . . Ballistic Cannon 4 | . . . . . 8 7 6 5 2 Launcher 3 | . 9 14 14 12 . . . . 1 Naked Turns . | . . . . . . . . . . Heaviest Build 105 | 11 18 18 18 19 79 88 102 105 104 Greatest Support 121 | 20 20 20 20 20 35 53 78 121 121 Greatest Overweight (x) 2 | . . . . . 2 2 2 1 . Average Overweight (x) . | . . . . . 1 1 1 . . Largest Inventory Capacity 10 | 8 10 10 10 10 10 10 10 10 10 Average Capacity 9 | 6 8 10 10 10 10 10 10 10 9 Most Carried 10 | 5 6 7 10 10 10 10 10 10 10 Average Carried 8 | 2 3 5 7 9 7 8 8 9 8 Final Capacity 10 | 8 10 10 10 10 10 10 10 10 5 Final Carried 10 | 2 5 7 10 10 10 9 9 10 4 Class Distribution -------------------- 39% | Skirmisher 33% | Mutant 19% | Tank 6% | Scavenger-Skirmisher Dominant Class ---------------- Mutant | -10/Materials Mutant | -10/Mines Mutant | -10/Exiles Mutant | -9/Mines Skirmisher | -8/Materials Skirmisher | -7/Factory Tank | -6/Factory Tank | -5/Factory Mutant | -5/Extension Resources | -11 -10 -10 -10 -9 -8 -7 -6 -5 -5 ----------- Run | Scr Mat Min Exi Min Mat Fac Fac Fac Ext Matter Collected 971 | 255 31 . . 143 163 65 150 . 164 Remotely . | . . . . . . . . . . Salvage Created 1711 | 84 33 29 . 22 528 435 237 . 343 Parts 95 | 2 2 3 . 2 33 32 6 . 15 Haulers Intercepted . | . . . . . . . . . . Recyclers Shooed 5 | 1 1 . . . . . . . 3 Parts Field Recycled . | . . . . . . . . . . Retrieved Matter . | . . . . . . . . . . Parts Self-Destructed . | . . . . . . . . . . Prevented . | . . . . . . . . . . Kills | -11 -10 -10 -10 -9 -8 -7 -6 -5 -5 ------- Run | Scr Mat Min Exi Min Mat Fac Fac Fac Ext Combat Hostiles Destroyed 46 | . 3 1 . 1 16 12 7 . 6 Melee 1 | . . . . . . . . . 1 Guns 3 | . 1 . . 1 . . . . 1 Cannons 37 | . . . . . 16 11 7 . 3 AOE 5 | . 2 1 . . . 1 . . 1 Classes Destroyed 13 | 1 2 . . . 7 1 . . 2 Builder 1 | . . . . . . . . . 1 Tunneler 1 | . . . . . 1 . . . . Recycler 2 | 1 . . . . 1 . . . . Mechanic 1 | . . . . . . . . . 1 Watcher 6 | . . . . . 3 2 . . 1 Swarmer 6 | . 2 . . . 4 . . . . Cutter 1 | . . . . . 1 . . . . Grunt 27 | . 1 1 . 1 5 8 6 . 5 Brawler 1 | . . . . . 1 . . . . Sentry 5 | . . . . . 3 . 1 . 1 Hunter 1 | . . . . . 1 . . . . Programmer 3 | . . . . . . 3 . . . Heavy 2 | . . . . . 1 1 . . . Best Kill Streak 8 | 1 2 1 . 1 8 3 3 . 3 Combat Bots Only 6 | . 2 1 . 1 6 3 3 . 3 Max Kills in Single Turn 2 | 1 2 1 . 1 1 1 1 . 1 Gunslinging . | . . . . . . . . . . Exploded 2 | . 2 1 . . . 1 . . 1 Melee 1 | . . . . . . . . . 1 Uniques/NPCs Destroyed . | . . . . . . . . . . Combat | -11 -10 -10 -10 -9 -8 -7 -6 -5 -5 -------- Run | Scr Mat Min Exi Min Mat Fac Fac Fac Ext Damage Taken 4645 | . 120 42 . 159 400 265 562 . 3097 Core 1186 | . 37 . . 10 25 31 69 . 1014 Absorbed by Shields . | . . . . . . . . . . Core Remaining (%) 92 | 100 . . . 81 95 95 91 . . Volleys Fired 50 | 3 8 2 . 11 . . . . 26 Largest 2 | 2 2 2 . 2 . . . . 1 Hottest 73 | 70 50 50 . 73 . . . . 33 Shots Fired 219 | 6 11 4 . 17 65 44 31 . 41 Gun 51 | 6 8 2 . 16 . . . . 19 Cannon 155 | . . . . . 65 44 31 . 15 Launcher 13 | . 3 2 . 1 . . . . 7 Special . | . . . . . . . . . . Kinetic 198 | 3 8 2 . 11 65 44 31 . 34 Thermal 8 | 3 . . . 5 . . . . . Explosive 13 | . 3 2 . 1 . . . . 7 Electromagnetic . | . . . . . . . . . . Robot Hit Streak 9 | 3 4 1 . 9 8 6 5 . 8 Robot Miss Streak 5 | 2 2 1 . 1 5 3 2 . 4 Penetration Max 1 | . . . . . . . . . 1 Secondary Targets . | . . . . . . . . . . Autonomous 156 | . . . . . 65 44 31 . 16 Shots Hit Robots 153 | 4 6 1 . 13 42 27 21 . 39 Core Hits 64 | 2 5 5 . 4 17 9 6 . 16 Critical Kills . | . . . . . . . . . . Critical Parts Destroyed . | . . . . . . . . . . Critical Strikes 9 | . . . . 1 4 3 1 . . Burn 1 | . . . . 1 . . . . . Blast 8 | . . . . . 4 3 1 . . Melee Attacks 17 | . . . . . . . . . 17 Impact . | . . . . . . . . . . Slashing 17 | . . . . . . . . . 17 Piercing . | . . . . . . . . . . Sneak Attacks 2 | . . . . . . . . . 2 Combat Hostiles . | . . . . . . . . . . Follow-up Attacks . | . . . . . . . . . . Damage Inflicted 10143 | 40 233 71 . 249 3462 2206 1703 . 2179 Guns 577 | 40 41 . . 185 . . . . 311 Cannons 8144 | . . . . . 3190 2139 1703 . 1112 Explosions 842 | . 192 58 . 62 272 63 . . 195 Melee 523 | . . . . . . . . . 523 Ramming 57 | . . 13 . 2 . 4 . . 38 Kinetic 8632 | 14 41 . . 122 3190 2139 1703 . 1423 Thermal 361 | 26 . . . 63 272 . . . . Explosive 570 | . 192 58 . 62 . 63 . . 195 Electromagnetic . | . . . . . . . . . . Impact . | . . . . . . . . . . Slashing 523 | . . . . . . . . . 523 Piercing . | . . . . . . . . . . Highest Corruption 1 | . . . . . . . . 1 1 Average Corruption 1 | . . . . . . . . 1 1 Corruption Purged . | . . . . . . . . . . Corruption Blocked . | . . . . . . . . . . Effects 4 | . . . . . . . . . 4 Matter Fused 1 | . . . . . . . . . 1 Heat Flow Errors 1 | . . . . . . . . . 1 Energy Discharges 1 | . . . . . . . . . 1 Data Loss (major) 1 | . . . . . . . . . 1 Overload Shots . | . . . . . . . . . . Overflow Damage 1377 | . . . . . 411 562 242 . 162 Projectiles 1289 | . . . . . 383 562 242 . 102 Explosions 28 | . . . . . 28 . . . . Melee 60 | . . . . . . . . . 60 Knockbacks 26 | . . . . 1 4 9 5 . 7 Impact 3 | . . . . 1 . . . . 2 Kinetic 21 | . . . . . 4 9 4 . 4 Secondary 2 | . . . . . . . 1 . 1 Self-Inflicted Damage 239 | . 26 1 . . . . . . 212 Shots 7 | . 1 1 . . . . . . 5 Rammed . | . . . . . . . . . . Targets Rammed 10 | . . 4 . 1 . 1 . . 4 Kicked 10 | . . 4 . 1 . 1 . . 4 Crushed . | . . . . . . . . . . Highest Temperature 158 | 20 20 19 . 79 6 7 9 . 158 Average Temperature 22 | 15 9 14 . 38 6 4 4 . 24 Received Heat Transfer 1017 | . 18 27 . 93 90 135 240 . 414 Siege Activations . | . . . . . . . . . . Robots Corrupted . | . . . . . . . . . . Combat Hostiles . | . . . . . . . . . . Parts Fried . | . . . . . . . . . . Impact Corruptions . | . . . . . . . . . . Robots Melted . | . . . . . . . . . . Combat Hostiles . | . . . . . . . . . . Parts Melted . | . . . . . . . . . . Heat Transferred 483 | 74 . . . 259 150 . . . . Parts Sabotaged . | . . . . . . . . . . Parts Stolen . | . . . . . . . . . . Parts Stripped . | . . . . . . . . . . Power Chain Reactions . | . . . . . . . . . . Missiles Intercepted . | . . . . . . . . . . Alert | -11 -10 -10 -10 -9 -8 -7 -6 -5 -5 ------- Run | Scr Mat Min Exi Min Mat Fac Fac Fac Ext Peak Influence 331 | 5 158 191 . 55 213 331 227 110 237 Initial 161 | . 3 61 . . 21 96 161 110 1 Average 86 | 3 42 78 . 4 89 104 172 85 58 Maximum Alert Level 1 | . . . . . 1 1 1 . 1 Low Security (%) 90 | 100 100 100 . 100 88 88 74 100 94 Level 1 9 | . . . . . 11 11 25 . 5 Level 2 . | . . . . . . . . . . Level 3 . | . . . . . . . . . . Level 4 . | . . . . . . . . . . Level 5 . | . . . . . . . . . . High Security . | . . . . . . . . . . Max Security . | . . . . . . . . . . Squads Dispatched 11 | . 1 . . . 3 5 2 . . Investigation 4 | . . . . . 1 1 2 . . Extermination 3 | . . . . . . 3 . . . Reinforcement 4 | . 1 . . . 2 1 . . . Assault . | . . . . . . . . . . Garrison . | . . . . . . . . . . Intercept . | . . . . . . . . . . Searches Triggered . | . . . . . . . . . . Construction Impeded . | . . . . . . . . . . Haulers Reinforced . | . . . . . . . . . . Active Scanning Responses . | . . . . . . . . . . Cargo Convoy Interrupts . | . . . . . . . . . . Stealth | -11 -10 -10 -10 -9 -8 -7 -6 -5 -5 --------- Run | Scr Mat Min Exi Min Mat Fac Fac Fac Ext Distress Signals 4 | . . . . . 2 . . . 2 Communications Jammed . | . . . . . . . . . . Distress Signals . | . . . . . . . . . . Times Spotted 55 | . 5 2 . 2 15 12 7 . 12 Peak Tracking Total 6 | . 3 2 . 2 6 3 3 . 6 Tactical Retreats 4 | . . . . . . 1 1 . 2 Traps | -11 -10 -10 -10 -9 -8 -7 -6 -5 -5 ------- Run | Scr Mat Min Exi Min Mat Fac Fac Fac Ext Traps Triggered 4 | . . . . . . . 2 1 1 Indirectly . | . . . . . . . . . . Trap Hack Attempts . | . . . . . . . . . . Triggered . | . . . . . . . . . . Disarmed . | . . . . . . . . . . Reprogrammed . | . . . . . . . . . . Reused . | . . . . . . . . . . Traps Extracted . | . . . . . . . . . . Installed . | . . . . . . . . . . Triggered . | . . . . . . . . . . Machines | -11 -10 -10 -10 -9 -8 -7 -6 -5 -5 ---------- Run | Scr Mat Min Exi Min Mat Fac Fac Fac Ext Machines Disabled 14 | . . 1 . 1 8 4 . . . Max in Single Turn 6 | . . 1 . 1 6 2 . . . Machines Sabotaged . | . . . . . . . . . . Garrisons Compromised . | . . . . . . . . . . Overloaded Fab Kills . | . . . . . . . . . . Hacking | -11 -10 -10 -10 -9 -8 -7 -6 -5 -5 --------- Run | Scr Mat Min Exi Min Mat Fac Fac Fac Ext Machines Accessed 7 | . 1 . . . 1 1 3 1 . Terminals 7 | . 1 . . . 1 1 3 1 . Fabricators . | . . . . . . . . . . Repair Stations . | . . . . . . . . . . Recycling Units . | . . . . . . . . . . Scanalyzers . | . . . . . . . . . . Garrison Access . | . . . . . . . . . . Total Hacks 18 | . 4 . . . 3 2 8 1 . Successful 8 | . 1 . . . 1 . 5 1 . Failed 10 | . 3 . . . 2 2 3 . . Catastrophic 1 | . . . . . . 1 . . . Database Lockouts . | . . . . . . . . . . Manual 14 | . 4 . 1 . 2 3 4 . . Terminals 18 | . 4 . . . 3 2 8 1 . Fabricators . | . . . . . . . . . . Repair Stations . | . . . . . . . . . . Recycling Units . | . . . . . . . . . . Scanalyzers . | . . . . . . . . . . Garrison Access . | . . . . . . . . . . Terminal Hacks 5 | . . . . . . . 4 1 . Record 2 | . . . . . . . 2 . . Open Door 1 | . . . . . . . . 1 . Alert Level 1 | . . . . . . . 1 . . Zone Layout 1 | . . . . . . . 1 . . Fabricator Hacks . | . . . . . . . . . . Repair Station Hacks . | . . . . . . . . . . Recycling Unit Hacks . | . . . . . . . . . . Scanalyzer . | . . . . . . . . . . Garrison Access Hacks . | . . . . . . . . . . Unauthorized Hacks 3 | . 1 . . . 1 . 1 . . Terminals 3 | . 1 . . . 1 . 1 . . Botnet 3 | . 1 . . . 1 . 1 . . Fabricators . | . . . . . . . . . . Repair Stations . | . . . . . . . . . . Recycling Units . | . . . . . . . . . . Scanalyzers . | . . . . . . . . . . Garrison Access . | . . . . . . . . . . Data Cores Recovered . | . . . . . . . . . . Used . | . . . . . . . . . . Hacking Detections 5 | . 1 . . . 1 1 2 . . Full Trace Events 4 | . . . . . 1 1 2 . . Feedback Events . | . . . . . . . . . . Feedback Blocked . | . . . . . . . . . . Robot Schematics Acquired . | . . . . . . . . . . Robots Built . | . . . . . . . . . . Authchips . | . . . . . . . . . . Time . | . . . . . . . . . . Total Robot Build Rating . | . . . . . . . . . . Part Schematics Acquired . | . . . . . . . . . . Parts Built . | . . . . . . . . . . Authchips . | . . . . . . . . . . Time . | . . . . . . . . . . Total Part Build Rating . | . . . . . . . . . . Parts Repaired . | . . . . . . . . . . Time . | . . . . . . . . . . Parts Recycled . | . . . . . . . . . . Recycled Matter . | . . . . . . . . . . Retrieved Matter . | . . . . . . . . . . Retrieved Components . | . . . . . . . . . . Parts Scanalyzed . | . . . . . . . . . . Part Schematics Acquired . | . . . . . . . . . . Parts Damaged . | . . . . . . . . . . Bothacking | -11 -10 -10 -10 -9 -8 -7 -6 -5 -5 ------------ Run | Scr Mat Min Exi Min Mat Fac Fac Fac Ext Used RIF Installer . | . . . . . . . . . . Robots Hacked . | . . . . . . . . . . Non-combat . | . . . . . . . . . . Combat . | . . . . . . . . . . Robot Hacks Applied . | . . . . . . . . . . Relay Couplers Released . | . . . . . . . . . . Fabnet Peak Effective % . | . . . . . . . . . . Robots Rewired . | . . . . . . . . . . Allies Hacked . | . . . . . . . . . . Hacks Repelled . | . . . . . . . . . . Allies | -11 -10 -10 -10 -9 -8 -7 -6 -5 -5 -------- Run | Scr Mat Min Exi Min Mat Fac Fac Fac Ext Total Allies 3 | . . 3 . . . . . . . Largest Group 3 | . . 3 3 3 2 . . . . Highest-Rated Group 40 | . . 40 40 40 24 . . . . Highest-Rated Ally 16 | . . 16 16 16 16 . . . . Total Orders . | . . . . . . . . . . Ally Attacks 20 | . . 6 . 8 6 . . . . Total Damage 197 | . . 60 . 84 53 . . . . Kills 2 | . . 1 . 1 . . . . . Allies Corrupted . | . . . . . . . . . . Allies Melted . | . . . . . . . . . . Intel | -11 -10 -10 -10 -9 -8 -7 -6 -5 -5 ------- Run | Scr Mat Min Exi Min Mat Fac Fac Fac Ext Robot Analysis Total . | . . . . . . . . . . Derelict Logs Recovered 2 | . . 1 . 1 . . . . . Drone Launches . | . . . . . . . . . . Drone Recoveries . | . . . . . . . . . . Exploration | -11 -10 -10 -10 -9 -8 -7 -6 -5 -5 ------------- Run | Scr Mat Min Exi Min Mat Fac Fac Fac Ext Turns Passed 5992 | 55 312 217 505 580 1409 1121 693 514 586 Spaces Moved 3210 | 35 224 171 410 447 532 487 349 268 287 Core 13 | 13 . . . . . . . . . Treads . | . . . . . . . . . . Legs 3197 | 22 224 171 410 447 532 487 349 268 287 Wheels . | . . . . . . . . . . Hover . | . . . . . . . . . . Flight . | . . . . . . . . . . Fastest Speed 50 | 50 120 120 120 120 120 190 180 100 105 Average Speed 167 | 94 120 120 120 120 257 222 185 158 107 Slowest Speed 270 | 120 120 120 120 120 260 260 270 180 112 Overloaded Moves . | . . . . . . . . . . Propulsion Burnouts . | . . . . . . . . . . Robots Hopped . | . . . . . . . . . . Cave-ins Triggered . | . . . . . . . . . . Exploration Rate (%) 34 | 4 36 38 77 90 37 15 10 8 30 Regions Visited 9 Branch Regions 4 Pre-discovered Areas 1 | . . 1 . . . . . . . Known Exits Taken 1 | . . . . . 1 . . . . Unknown Exits Taken 8 | 1 1 1 1 1 . 1 1 1 . Scrap Searched 2 | . . . . 2 . . . . . Spaces Dug . | . . . . . . . . . . Terrain Destroyed 197 | . 15 20 . . 32 56 12 . 62 Melee . | . . . . . . . . . . Projectile 52 | . . . . . 22 18 12 . . AOE 145 | . 15 20 . . 10 38 . . 62 Terrain Rammed . | . . . . . . . . . . Walls Destroyed . | . . . . . . . . . . Machines Disabled . | . . . . . . . . . . Actions | -11 -10 -10 -10 -9 -8 -7 -6 -5 -5 --------- Run | Scr Mat Min Exi Min Mat Fac Fac Fac Ext Total 3752 | 51 258 178 425 475 574 526 395 359 511 Wait 325 | . 16 . 5 8 23 20 9 74 170 Move 3201 | 34 223 170 409 446 531 486 348 267 287 Hop . | . . . . . . . . . . Pick Up 61 | 8 6 2 5 3 9 7 15 6 . Fast Attach 2 | . . . . 1 . 1 . . . Attach 37 | 6 1 . . 1 5 5 9 4 6 Detach 1 | . . . . . . . . 1 . Swap 17 | . 2 . 1 1 3 1 6 3 . Drop 31 | . 2 . 5 3 3 5 8 4 1 Fire 50 | 3 8 2 . 11 . . . . 26 Melee 17 | . . . . . . . . . 17 Ram . | . . . . . . . . . . Kick 10 | . . 4 . 1 . 1 . . 4 Crush . | . . . . . . . . . . Escape Stasis . | . . . . . . . . . . Rewire . | . . . . . . . . . . Trap . | . . . . . . . . . . Miscellaneous . | . . . . . . . . . . Route ------- -11/Scrapyard -10/Materials -10/Mines (discovered 3 exits: [*Mat x2] / *Exi) -10/Exiles -9/Mines -8/Materials -7/Factory (discovered 3 exits: *Fac x2 / [*Low]) -6/Factory -5/Factory -5/Extension History --------- Turn | Location | Event 8 | -11/Scrapyard | Discovered new exit (range 16) 56 | -11/Scrapyard | Entered Materials 302 | -10/Materials | Discovered new exit (range 8) 317 | -10/Materials | Build established: Mutant 368 | -10/Materials | Entered Mines 374 | -10/Mines | Discovered new exit (range 13) 437 | -10/Mines | Discovered new exit (range 9) 504 | -10/Mines | Learned location of Storage (-9) 524 | -10/Mines | Assisted by bots powering up and referring to "LRC-V3" 578 | -10/Mines | Deemed a non-threat by the Exiles lab entrance 579 | -10/Mines | Discovered new exit (range 5) 585 | -10/Mines | Entered Exiles 585 | -10/Exiles | Accompanied by 3 allies 614 | -10/Exiles | Met 8R-AWN 636 | -10/Exiles | Met EX-HEX 689 | -10/Exiles | Met EX-DEC 716 | -10/Exiles | Visited The Gauntlet 859 | -10/Exiles | Met EX-BIN 876 | -10/Exiles | Aligned with FarCom system 877 | -10/Exiles | Given EX-Vault access code 906 | -10/Exiles | Opened EX-Vault 945 | -10/Exiles | Found Prototype Device 947 | -10/Exiles | Found Prototype Device 948 | -10/Exiles | Identified Trap Reconfigurator 955 | -10/Exiles | Found Prototype Ballistic Cannon 962 | -10/Exiles | Exiles lab attacked by MAIN.C 1070 | -10/Exiles | Discovered new exit (range 12) 1090 | -10/Exiles | Left Exiles lab with AWS/Autocannon 1090 | -10/Exiles | Entered Mines 1090 | -9/Mines | Accompanied by 3 allies 1106 | -9/Mines | Received a Rocket Launcher from a helpful Derelict 1500 | -9/Mines | Learned 4 Materials zone layouts 1626 | -9/Mines | Discovered new exit (range 4) 1670 | -9/Mines | Entered Materials 1670 | -8/Materials | Accompanied by 2 allies 1670 | -8/Materials | Evolved 4 slots: Power x1, Propulsion x1, Utility x1, Weapon x1 1671 | -8/Materials | Identified exit to Factory 1686 | -8/Materials | Identified AWS/Autocannon 1961 | -8/Materials | Build established: Skirmisher 3079 | -8/Materials | Entered Factory 3079 | -7/Factory | Evolved 2 slots: Propulsion x1, Utility x1 3122 | -7/Factory | Discovered new exit (range 14) 4097 | -7/Factory | Discovered new exit (range 15) 4125 | -7/Factory | Discovered new exit (range 14) 4200 | -7/Factory | Entered another Factory area 4200 | -6/Factory | Evolved 2 slots: Propulsion x1, Utility x1 4787 | -6/Factory | Build established: Tank 4866 | -6/Factory | Discovered new exit (range 16) 4893 | -6/Factory | Entered another Factory area 4893 | -5/Factory | Evolved 2 slots: Propulsion x1, Utility x1 5400 | -5/Factory | Discovered new exit (range 9) 5407 | -5/Factory | Entered Extension 5807 | -5/Extension | Disrupted transfer network 5972 | -5/Extension | Build established: Mutant 5974 | -5/Extension | Core integrity fell below 50% 5988 | -5/Extension | Core integrity fell below 20% 5993 | -5/Extension | Destroyed by H-66 Slayer with Gauss Rifle Last Messages --------------- 05971_ The unstable cave ceiling collapses. 05971_ Penetrated by Slug. 05971_ Slug penetrates Earth. 05972_ The unstable cave ceiling collapses. 05973_ Penetrated by Slug. 05974_ The unstable cave ceiling collapses. 05974_ Penetrated by Slug. 05975_ W-25 Informer sends out distress signal. 05977_ Penetrated by Slug. 05977_ Axe destroyed. 05977_ Slug penetrates Earth. 05977_ Penetrated by Slug. 05983_ Med. Storage Unit destroyed. 05987_ Penetrated by Slug. 05990_ U-05 Engineer lays Concrete. 05990_ Penetrated by Slug. 05991_ U-05 Engineer lays Concrete. 05992_ U-05 Engineer builds a Wall. 05993_ Penetrated by Slug. [Achievement: Achiever] Map ----- +----------------------------------------------------+ | | | | | | | | | | | | | | | | | | | | | | | | | | | | | | | ?????????????????????????????????????????????????? | | ?????????????????????????????????????????????????? | | ?????????????????????????????????????????????????? | | ?????????????????????????????????????????????????? | | ?????????????????????????????????????????????????? | | ????#######################??????????????????????? | | ????# w #??????????????????????? | | ????# ############# #?????????????o????????? | | ???## #?????????# # ##?????????????????????? | | [[ + #?????????# #?????????????????????? | | # #??????????# @ #?????????????????????? | | #### #?????????# h #????????????????????? | | Y#?????????# #h ##????????????????????? | | ###########Y#?????????## u#########??????????????? | | #?????????# #??????????## % ???????? | | #?????????? ???????????###########??????????????? | | #??????????###???????????????????????????????????? | | ?????????????????????????????????????????????????? | | ?????????????????????????????????????????????????? | | ?????????????????????????????????????????????????? | | ?????????????????????????????????????????????????? | | ?????????????????????????????????????????????????? | | ?????????????????????????????????????????????????? | | ?????????????????????????????????????????????????? | | ?????????????????????????????????????????????????? | | ?????????????????????????????????????????????????? | | ?????????????????????????????????????????????????? | | ?????????????????????????????????????????????????? | | ?????????????????????????????????????????????????? | | ?????????????????????????????????????????????????? | | ?????????????????????????????????????????????????? | | ?????????????????????????????????????????????????? | | ?????????????????????????????????????????????????? | | ?????????????????????????????????????????????????? | | ?????????????????????????????????????????????????? | +----------------------------------------------------+ Best States ------------- Heat Dissipation 40 Energy Generation 31 Energy Capacity 400 Matter Stores 300 Matter Capacity 300 Sight Range 16 Terrain Scan Range 14 Terrain Scan Density 110 Armor Coverage 450 Evasion (%) 55 Matter Filtering 30 Kinecelleration 30 Item Schematics ----------------- None Robot Schematics ------------------ None Fabricated ------------ Nothing Alien Tech Used ----------------- None Achievements -------------- Achiever Respectable Loadout Challenges ------------ None Game ------ Seed ThrusterReactiveDatajack Manual? 0 Play Time 00:42:11 Cumulative 47.2 hours Start 2022.09.24 @ 22:42:23 End 2022.09.24 @ 23:27:03 Sessions 1 Manual Loads 0 Difficulty Rogue Special Mode None Game No. 111 Rogue 111 Adventurer 0 Explorer 0 Win Type - Total 0 Types 0/0/0/0/0/0/0/0/0 Lore% 29 Gallery% 27 Achievement% 25 Wizard Run 0 Options --------- ASCII 0 Keyboard 0 Movement Numpad Keybinds 0 Fullscreen 1 Font 12/Smallcaps Map View 83x54 Tactical HUD 1 Map Filters NONE Filters NONE Steam 1 RUN: e108f1b4-d934-47a5-904f-219ef0b9f936